Workbook

Sheet Journal
I3: =SUBTOTAL(9,I5:I2974) -> 19944.43
A4: BANQUE | B4: DATE | C4: LIBÉLLE | D4: RUBRIQUE | E4: CATÉGORIE | F4: SENS | G4: MODE | H4: MONTANT ECRITURE | I4: MONTANT COMPTABLE | J4: POINTAGE | K4: PÉRIODE | L4: Prévision
A5: BNP - Compte Joint | B5: 2018-01-01 | C5: A nouveau | D5: A nouveau | F5: Recette | G5: Virement | H5: 2.82 | I5: =IF(F5="Dépense",H5*-1,H5) -> 2.82 | J5: 1 | K5: =IF(A5>1,YEAR(B5)&"-"&TEXT(MONTH(B5),"00")," ") -> 2018-01
A6: BNP - Compte Joint | B6: 2018-01-01 | C6: A nouveau | D6: A nouveau | F6: Recette | G6: Virement | H6: 10.04 | I6: =IF(F6="Dépense",H6*-1,H6) -> 10.04 | J6: 1 | K6: =IF(A6>1,YEAR(B6)&"-"&TEXT(MONTH(B6),"00")," ") -> 2018-01
A7: Espèces | B7: 2018-01-01 | C7: A nouveau | D7: A nouveau | F7: Dépense | G7: Espèces | H7: 2074.62 | I7: =IF(F7="Dépense",H7*-1,H7) -> -2074.62 | J7: 1 | K7: =IF(A7>1,YEAR(B7)&"-"&TEXT(MONTH(B7),"00")," ") -> 2018-01
A8: Hello - Compte courant | B8: 2018-01-01 | C8: A nouveau | D8: A nouveau | F8: Recette | G8: Autre mode | H8: 36856.44 | I8: =IF(F8="Dépense",H8*-1,H8) -> 36856.44 | J8: 1 | K8: =IF(A8>1,YEAR(B8)&"-"&TEXT(MONTH(B8),"00")," ") -> 2018-01
A9: Hello - Compte joint | B9: 2018-01-01 | C9: A nouveau | D9: A nouveau | F9: Recette | G9: Carte | H9: 3617.41 | I9: =IF(F9="Dépense",H9*-1,H9) -> 3617.41 | J9: 1 | K9: =IF(A9>1,YEAR(B9)&"-"&TEXT(MONTH(B9),"00")," ") -> 2018-01
A10: Hello Bank - LDD | B10: 2018-01-01 | C10: A nouveau | D10: A nouveau | F10: Recette | G10: Carte | H10: 757.28 | I10: =IF(F10="Dépense",H10*-1,H10) -> 757.28 | J10: 1 | K10: =IF(A10>1,YEAR(B10)&"-"&TEXT(MONTH(B10),"00")," ") -> 2018-01
A11: Hello Bank - LDD | B11: 2018-01-01 | C11: A nouveau | D11: A nouveau | F11: Recette | G11: Virement | H11: 12044.54 | I11: =IF(F11="Dépense",H11*-1,H11) -> 12044.54 | J11: 1 | K11: =IF(A11>1,YEAR(B11)&"-"&TEXT(MONTH(B11),"00")," ") -> 2018-01
A12: S.G. Compte courant | B12: 2018-01-01 | C12: A nouveau | D12: A nouveau | F12: Recette | G12: Autre mode | H12: 20313.78 | I12: =IF(F12="Dépense",H12*-1,H12) -> 20313.78 | J12: 1 | K12: =IF(A12>1,YEAR(B12)&"-"&TEXT(MONTH(B12),"00")," ") -> 2018-01
A13: S.G. Livret A | B13: 2018-01-01 | C13: A nouveau | D13: Epargne Livret A | F13: Recette | G13: Virement | H13: 22929.06 | I13: =IF(F13="Dépense",H13*-1,H13) -> 22929.06 | J13: 1 | K13: =IF(A13>1,YEAR(B13)&"-"&TEXT(MONTH(B13),"00")," ") -> 2018-01
A14: Tirelire | B14: 2018-01-01 | C14: A nouveau | D14: A nouveau | F14: Recette | G14: Carte | H14: 13000 | I14: =IF(F14="Dépense",H14*-1,H14) -> 13000 | J14: 1 | K14: =IF(A14>1,YEAR(B14)&"-"&TEXT(MONTH(B14),"00")," ") -> 2018-01
A15: Hello - Compte courant | B15: 2018-01-02 | C15: Retraite | D15: AGIRC | F15: Recette | G15: Virement | H15: 119.85 | I15: =IF(F15="Dépense",H15*-1,H15) -> 119.85 | J15: 1 | K15: =IF(A15>1,YEAR(B15)&"-"&TEXT(MONTH(B15),"00")," ") -> 2018-01
A16: Hello - Compte courant | B16: 2018-01-02 | C16: Retraite | D16: RAVGDT | F16: Recette | G16: Virement | H16: 207.63 | I16: =IF(F16="Dépense",H16*-1,H16) -> 207.63 | J16: 1 | K16: =IF(A16>1,YEAR(B16)&"-"&TEXT(MONTH(B16),"00")," ") -> 2018-01
A17: Hello - Compte courant | B17: 2018-01-02 | C17: Retraite | D17: ARRCO | F17: Recette | G17: Virement | H17: 222.11 | I17: =IF(F17="Dépense",H17*-1,H17) -> 222.11 | J17: 1 | K17: =IF(A17>1,YEAR(B17)&"-"&TEXT(MONTH(B17),"00")," ") -> 2018-01
A18: Hello - Compte joint | B18: 2018-01-02 | C18: Syndicat des eaux | D18: Eau | F18: Dépense | G18: Prélèvemt | H18: 50.55 | I18: =IF(F18="Dépense",H18*-1,H18) -> -50.55 | J18: 1 | K18: =IF(A18>1,YEAR(B18)&"-"&TEXT(MONTH(B18),"00")," ") -> 2018-01
A19: Hello - Compte courant | B19: 2018-01-03 | C19: Essence | D19: Guadeloupe | F19: Dépense | G19: Carte | H19: 56 | I19: =IF(F19="Dépense",H19*-1,H19) -> -56 | J19: 1 | K19: =IF(A19>1,YEAR(B19)&"-"&TEXT(MONTH(B19),"00")," ") -> 2018-01
A20: Hello - Compte courant | B20: 2018-01-03 | C20: Candy | D20: Multimedia-Musique-Livres- | F20: Dépense | G20: Prélèvemt | H20: 8.99 | I20: =IF(F20="Dépense",H20*-1,H20) -> -8.99 | J20: 1 | K20: =IF(A20>1,YEAR(B20)&"-"&TEXT(MONTH(B20),"00")," ") -> 2018-01
A21: S.G. Livret A | B21: 2018-01-03 | C21: Interets | D21: Intérêts épargne | F21: Recette | G21: Virement | H21: 141.67 | I21: =IF(F21="Dépense",H21*-1,H21) -> 141.67 | J21: 1 | K21: =IF(A21>1,YEAR(B21)&"-"&TEXT(MONTH(B21),"00")," ") -> 2018-01
A22: BNP - Compte Joint | B22: 2018-01-03T16:25:49 | C22: Livre | D22: Cadeaux offerts | F22: Dépense | G22: Prélèvemt | H22: 1.76 | I22: =IF(F22="Dépense",H22*-1,H22) -> -1.76 | J22: 1 | K22: =IF(A22>1,YEAR(B22)&"-"&TEXT(MONTH(B22),"00")," ") -> 2018-01
A23: Hello - Compte courant | B23: 2018-01-04 | C23: Super U | D23: Guadeloupe | F23: Dépense | G23: Carte | H23: 23.41 | I23: =IF(F23="Dépense",H23*-1,H23) -> -23.41 | J23: 1 | K23: =IF(A23>1,YEAR(B23)&"-"&TEXT(MONTH(B23),"00")," ") -> 2018-01
A24: Hello - Compte courant | B24: 2018-01-08 | C24: Restaurant | D24: Guadeloupe | F24: Dépense | G24: Carte | H24: 32.5 | I24: =IF(F24="Dépense",H24*-1,H24) -> -32.5 | J24: 1 | K24: =IF(A24>1,YEAR(B24)&"-"&TEXT(MONTH(B24),"00")," ") -> 2018-01
A25: Hello - Compte courant | B25: 2018-01-08 | C25: Pizza | D25: Guadeloupe | F25: Dépense | G25: Carte | H25: 18.5 | I25: =IF(F25="Dépense",H25*-1,H25) -> -18.5 | J25: 1 | K25: =IF(A25>1,YEAR(B25)&"-"&TEXT(MONTH(B25),"00")," ") -> 2018-01
A26: S.G. Compte courant | B26: 2018-01-08 | C26: Retraite | D26: RSI | F26: Recette | G26: Virement | H26: 369.99 | I26: =IF(F26="Dépense",H26*-1,H26) -> 369.99 | J26: 1 | K26: =IF(A26>1,YEAR(B26)&"-"&TEXT(MONTH(B26),"00")," ") -> 2018-01
A27: S.G. Compte courant | B27: 2018-01-09 | C27: Retraite | D27: CARSAT | F27: Recette | G27: Virement | H27: 714.11 | I27: =IF(F27="Dépense",H27*-1,H27) -> 714.11 | J27: 1 | K27: =IF(A27>1,YEAR(B27)&"-"&TEXT(MONTH(B27),"00")," ") -> 2018-01
A28: Hello - Compte courant | B28: 2018-01-10 | C28: Vapette | D28: Tabac | F28: Dépense | G28: Carte | H28: 36.6 | I28: =IF(F28="Dépense",H28*-1,H28) -> -36.6 | J28: 1 | K28: =IF(A28>1,YEAR(B28)&"-"&TEXT(MONTH(B28),"00")," ") -> 2018-01
A29: Hello - Compte courant | B29: 2018-01-10 | C29: Super U | D29: Alimentation | F29: Dépense | G29: Carte | H29: 16.14 | I29: =IF(F29="Dépense",H29*-1,H29) -> -16.14 | J29: 1 | K29: =IF(A29>1,YEAR(B29)&"-"&TEXT(MONTH(B29),"00")," ") -> 2018-01
A30: Hello - Compte courant | B30: 2018-01-10 | C30: Pension | D30: Lucie | F30: Dépense | G30: Prélèvemt | H30: 100 | I30: =IF(F30="Dépense",H30*-1,H30) -> -100 | J30: 1 | K30: =IF(A30>1,YEAR(B30)&"-"&TEXT(MONTH(B30),"00")," ") -> 2018-01
A31: Hello - Compte joint | B31: 2018-01-10 | C31: Loyer | D31: Loyer | F31: Dépense | G31: Prélèvemt | H31: 461.92 | I31: =IF(F31="Dépense",H31*-1,H31) -> -461.92 | J31: 1 | K31: =IF(A31>1,YEAR(B31)&"-"&TEXT(MONTH(B31),"00")," ") -> 2018-01
A32: Hello - Compte courant | B32: 2018-01-11 | C32: Super U | D32: Guadeloupe | F32: Dépense | G32: Carte | H32: 20.09 | I32: =IF(F32="Dépense",H32*-1,H32) -> -20.09 | J32: 1 | K32: =IF(A32>1,YEAR(B32)&"-"&TEXT(MONTH(B32),"00")," ") -> 2018-01
A33: Hello - Compte courant | B33: 2018-01-12 | C33: Super U | D33: Guadeloupe | F33: Dépense | G33: Carte | H33: 15 | I33: =IF(F33="Dépense",H33*-1,H33) -> -15 | J33: 1 | K33: =IF(A33>1,YEAR(B33)&"-"&TEXT(MONTH(B33),"00")," ") -> 2018-01
A34: Hello - Compte courant | B34: 2018-01-15 | C34: Super U | D34: Guadeloupe | F34: Dépense | G34: Carte | H34: 27.43 | I34: =IF(F34="Dépense",H34*-1,H34) -> -27.43 | J34: 1 | K34: =IF(A34>1,YEAR(B34)&"-"&TEXT(MONTH(B34),"00")," ") -> 2018-01
A35: Hello - Compte courant | B35: 2018-01-16 | C35: Essence | D35: Guadeloupe | F35: Dépense | G35: Carte | H35: 60 | I35: =IF(F35="Dépense",H35*-1,H35) -> -60 | J35: 1 | K35: =IF(A35>1,YEAR(B35)&"-"&TEXT(MONTH(B35),"00")," ") -> 2018-01
A36: Hello - Compte joint | B36: 2018-01-16 | C36: Impot | D36: Impôts et Taxes | F36: Dépense | G36: Prélèvemt | H36: 49 | I36: =IF(F36="Dépense",H36*-1,H36) -> -49 | J36: 1 | K36: =IF(A36>1,YEAR(B36)&"-"&TEXT(MONTH(B36),"00")," ") -> 2018-01
A37: Hello - Compte courant | B37: 2018-01-17 | C37: Telephone | D37: Guadeloupe | F37: Dépense | G37: Carte | H37: 204 | I37: =IF(F37="Dépense",H37*-1,H37) -> -204 | J37: 1 | K37: =IF(A37>1,YEAR(B37)&"-"&TEXT(MONTH(B37),"00")," ") -> 2018-01
A38: Hello - Compte courant | B38: 2018-01-17 | C38: Housse | D38: Guadeloupe | F38: Dépense | G38: Carte | H38: 29 | I38: =IF(F38="Dépense",H38*-1,H38) -> -29 | J38: 1 | K38: =IF(A38>1,YEAR(B38)&"-"&TEXT(MONTH(B38),"00")," ") -> 2018-01
A39: Hello - Compte courant | B39: 2018-01-18 | C39: Super U | D39: Guadeloupe | F39: Dépense | G39: Carte | H39: 21.39 | I39: =IF(F39="Dépense",H39*-1,H39) -> -21.39 | J39: 1 | K39: =IF(A39>1,YEAR(B39)&"-"&TEXT(MONTH(B39),"00")," ") -> 2018-01
A40: Hello - Compte courant | B40: 2018-01-18 | C40: Orange | D40: Guadeloupe | F40: Dépense | G40: Prélèvemt | H40: 77.73 | I40: =IF(F40="Dépense",H40*-1,H40) -> -77.73 | J40: 1 | K40: =IF(A40>1,YEAR(B40)&"-"&TEXT(MONTH(B40),"00")," ") -> 2018-01
A41: Hello - Compte courant | B41: 2018-01-19 | C41: Location Avant 14/12 | D41: Guadeloupe | F41: Dépense | G41: Chèque | H41: 565 | I41: =IF(F41="Dépense",H41*-1,H41) -> -565 | J41: 1 | K41: =IF(A41>1,YEAR(B41)&"-"&TEXT(MONTH(B41),"00")," ") -> 2018-01
A42: Hello - Compte courant | B42: 2018-01-22 | C42: E Liquide | D42: Guadeloupe | F42: Dépense | G42: Carte | H42: 30.5 | I42: =IF(F42="Dépense",H42*-1,H42) -> -30.5 | J42: 1 | K42: =IF(A42>1,YEAR(B42)&"-"&TEXT(MONTH(B42),"00")," ") -> 2018-01
A43: Hello - Compte courant | B43: 2018-01-23 | C43: Super U | D43: Guadeloupe | F43: Dépense | G43: Carte | H43: 30.41 | I43: =IF(F43="Dépense",H43*-1,H43) -> -30.41 | J43: 1 | K43: =IF(A43>1,YEAR(B43)&"-"&TEXT(MONTH(B43),"00")," ") -> 2018-01
A44: Hello - Compte courant | B44: 2018-01-25 | C44: Geneanet | D44: Multimedia-Musique-Livres- | F44: Dépense | G44: Carte | H44: 50 | I44: =IF(F44="Dépense",H44*-1,H44) -> -50 | J44: 1 | K44: =IF(A44>1,YEAR(B44)&"-"&TEXT(MONTH(B44),"00")," ") -> 2018-01
A45: Hello - Compte courant | B45: 2018-01-25T07:38:09 | C45: Taxe de séjour | D45: Guadeloupe | F45: Dépense | G45: Chèque | H45: 30 | I45: =IF(F45="Dépense",H45*-1,H45) -> -30 | J45: 1 | K45: =IF(A45>1,YEAR(B45)&"-"&TEXT(MONTH(B45),"00")," ") -> 2018-01
A46: Hello - Compte courant | B46: 2018-01-29 | C46: Carburant | D46: Guadeloupe | F46: Dépense | G46: Carte | H46: 56.03 | I46: =IF(F46="Dépense",H46*-1,H46) -> -56.03 | J46: 1 | K46: =IF(A46>1,YEAR(B46)&"-"&TEXT(MONTH(B46),"00")," ") -> 2018-01
A47: Hello - Compte courant | B47: 2018-01-29 | C47: Gourmets Wok | D47: Restaurant | F47: Dépense | G47: Carte | H47: 39.8 | I47: =IF(F47="Dépense",H47*-1,H47) -> -39.8 | J47: 1 | K47: =IF(A47>1,YEAR(B47)&"-"&TEXT(MONTH(B47),"00")," ") -> 2018-01
A48: Hello - Compte joint | B48: 2018-01-29 | C48: Orange | D48: Téléphone - Internet | F48: Dépense | G48: Prélèvemt | H48: 40.99 | I48: =IF(F48="Dépense",H48*-1,H48) -> -40.99 | J48: 1 | K48: =IF(A48>1,YEAR(B48)&"-"&TEXT(MONTH(B48),"00")," ") -> 2018-01
A49: Hello - Compte courant | B49: 2018-02-01 | C49: Leclerc | D49: Alimentation | F49: Dépense | G49: Carte | H49: 25.82 | I49: =IF(F49="Dépense",H49*-1,H49) -> -25.82 | J49: 1 | K49: =IF(A49>1,YEAR(B49)&"-"&TEXT(MONTH(B49),"00")," ") -> 2018-02
A50: Hello - Compte courant | B50: 2018-02-01 | C50: Leclerc | D50: Carburant | F50: Dépense | G50: Carte | H50: 56.35 | I50: =IF(F50="Dépense",H50*-1,H50) -> -56.35 | J50: 1 | K50: =IF(A50>1,YEAR(B50)&"-"&TEXT(MONTH(B50),"00")," ") -> 2018-02
A51: Hello - Compte courant | B51: 2018-02-01 | C51: Retraite | D51: AGIRC | F51: Recette | G51: Virement | H51: 119.85 | I51: =IF(F51="Dépense",H51*-1,H51) -> 119.85 | J51: 1 | K51: =IF(A51>1,YEAR(B51)&"-"&TEXT(MONTH(B51),"00")," ") -> 2018-02
A52: Hello - Compte courant | B52: 2018-02-01 | C52: Retraite | D52: ARRCO | F52: Recette | G52: Virement | H52: 222.11 | I52: =IF(F52="Dépense",H52*-1,H52) -> 222.11 | J52: 1 | K52: =IF(A52>1,YEAR(B52)&"-"&TEXT(MONTH(B52),"00")," ") -> 2018-02
A53: Hello - Compte joint | B53: 2018-02-02 | C53: Impot | D53: Impôts et Taxes | F53: Dépense | G53: Prélèvemt | H53: 49 | I53: =IF(F53="Dépense",H53*-1,H53) -> -49 | J53: 1 | K53: =IF(A53>1,YEAR(B53)&"-"&TEXT(MONTH(B53),"00")," ") -> 2018-02
A54: Hello - Compte joint | B54: 2018-02-05 | C54: Seolis | D54: Electricité | F54: Dépense | G54: Prélèvemt | H54: 129.76 | I54: =IF(F54="Dépense",H54*-1,H54) -> -129.76 | J54: 1 | K54: =IF(A54>1,YEAR(B54)&"-"&TEXT(MONTH(B54),"00")," ") -> 2018-02
A55: Hello - Compte courant | B55: 2018-02-05T16:27:30 | C55: Hyper U | D55: Alimentation | F55: Dépense | G55: Carte | H55: 38.38 | I55: =IF(F55="Dépense",H55*-1,H55) -> -38.38 | J55: 1 | K55: =IF(A55>1,YEAR(B55)&"-"&TEXT(MONTH(B55),"00")," ") -> 2018-02
A56: Hello - Compte courant | B56: 2018-02-06 | C56: De Epargne LDD | D56: Virement | F56: Recette | G56: Virement | H56: 12000 | I56: =IF(F56="Dépense",H56*-1,H56) -> 12000 | J56: 1 | K56: =IF(A56>1,YEAR(B56)&"-"&TEXT(MONTH(B56),"00")," ") -> 2018-02
A57: Hello Bank - LDD | B57: 2018-02-06 | C57: Compte courant | D57: Epargne LDD | F57: Dépense | G57: Virement | H57: 12000 | I57: =IF(F57="Dépense",H57*-1,H57) -> -12000 | J57: 1 | K57: =IF(A57>1,YEAR(B57)&"-"&TEXT(MONTH(B57),"00")," ") -> 2018-02
A58: Hello - Compte courant | B58: 2018-02-06T16:51:46 | C58: Calumette | D58: Tabac | F58: Dépense | G58: Carte | H58: 59.5 | I58: =IF(F58="Dépense",H58*-1,H58) -> -59.5 | J58: 1 | K58: =IF(A58>1,YEAR(B58)&"-"&TEXT(MONTH(B58),"00")," ") -> 2018-02
A59: Hello - Compte courant | B59: 2018-02-07 | C59: Hyper U | D59: Alimentation | F59: Dépense | G59: Carte | H59: 17.78 | I59: =IF(F59="Dépense",H59*-1,H59) -> -17.78 | J59: 1 | K59: =IF(A59>1,YEAR(B59)&"-"&TEXT(MONTH(B59),"00")," ") -> 2018-02
A60: S.G. Compte courant | B60: 2018-02-08 | C60: Retraite | D60: RSI | F60: Recette | G60: Virement | H60: 363.2 | I60: =IF(F60="Dépense",H60*-1,H60) -> 363.2 | J60: 1 | K60: =IF(A60>1,YEAR(B60)&"-"&TEXT(MONTH(B60),"00")," ") -> 2018-02
A61: S.G. Compte courant | B61: 2018-02-09 | C61: Retraite | D61: CARSAT | F61: Recette | G61: Virement | H61: 701 | I61: =IF(F61="Dépense",H61*-1,H61) -> 701 | J61: 1 | K61: =IF(A61>1,YEAR(B61)&"-"&TEXT(MONTH(B61),"00")," ") -> 2018-02
A62: Hello - Compte courant | B62: 2018-02-09T22:27:35 | C62: Essence | D62: Carburant | F62: Dépense | G62: Carte | H62: 56 | I62: =IF(F62="Dépense",H62*-1,H62) -> -56 | J62: 1 | K62: =IF(A62>1,YEAR(B62)&"-"&TEXT(MONTH(B62),"00")," ") -> 2018-02
A63: Hello - Compte joint | B63: 2018-02-10 | C63: Loyer | D63: Loyer | F63: Dépense | G63: Prélèvemt | H63: 461.92 | I63: =IF(F63="Dépense",H63*-1,H63) -> -461.92 | J63: 1 | K63: =IF(A63>1,YEAR(B63)&"-"&TEXT(MONTH(B63),"00")," ") -> 2018-02
A64: Hello - Compte courant | B64: 2018-02-12 | C64: Hyper U | D64: Alimentation | F64: Dépense | G64: Carte | H64: 83.06 | I64: =IF(F64="Dépense",H64*-1,H64) -> -83.06 | J64: 1 | K64: =IF(A64>1,YEAR(B64)&"-"&TEXT(MONTH(B64),"00")," ") -> 2018-02
A65: Hello - Compte courant | B65: 2018-02-12 | C65: Pension | D65: Lucie | F65: Dépense | G65: Prélèvemt | H65: 100 | I65: =IF(F65="Dépense",H65*-1,H65) -> -100 | J65: 1 | K65: =IF(A65>1,YEAR(B65)&"-"&TEXT(MONTH(B65),"00")," ") -> 2018-02
A66: Hello - Compte courant | B66: 2018-02-12 | C66: APIVIA | D66: Mutuelle | F66: Dépense | G66: Prélèvemt | H66: 67.05 | I66: =IF(F66="Dépense",H66*-1,H66) -> -67.05 | J66: 1 | K66: =IF(A66>1,YEAR(B66)&"-"&TEXT(MONTH(B66),"00")," ") -> 2018-02
A67: Hello - Compte joint | B67: 2018-02-12T16:58:12 | C67: Changement domiciliation | D67: Virement | F67: Recette | G67: Virement | H67: 18.66 | I67: =IF(F67="Dépense",H67*-1,H67) -> 18.66 | J67: 1 | K67: =IF(A67>1,YEAR(B67)&"-"&TEXT(MONTH(B67),"00")," ") -> 2018-02
A68: Hello - Compte courant | B68: 2018-02-12T17:00:12 | C68: Radar | D68: Frais exceptionels | F68: Dépense | G68: Carte | H68: 45 | I68: =IF(F68="Dépense",H68*-1,H68) -> -45 | J68: 1 | K68: =IF(A68>1,YEAR(B68)&"-"&TEXT(MONTH(B68),"00")," ") -> 2018-02
A69: Espèces | B69: 2018-02-13 | C69: Tirelire | D69: Virement | F69: Recette | G69: Espèces | H69: 1000 | I69: =IF(F69="Dépense",H69*-1,H69) -> 1000 | J69: 1 | K69: =IF(A69>1,YEAR(B69)&"-"&TEXT(MONTH(B69),"00")," ") -> 2018-02
A70: Espèces | B70: 2018-02-13 | C70: Remise à zéro especes | D70: Virement | F70: Recette | G70: Espèces | H70: 2294.62 | I70: =IF(F70="Dépense",H70*-1,H70) -> 2294.62 | J70: 1 | K70: =IF(A70>1,YEAR(B70)&"-"&TEXT(MONTH(B70),"00")," ") -> 2018-02
A71: Hello - Compte courant | B71: 2018-02-13 | C71: Telephone | D71: Guadeloupe | F71: Dépense | G71: Prélèvemt | H71: 44 | I71: =IF(F71="Dépense",H71*-1,H71) -> -44 | J71: 1 | K71: =IF(A71>1,YEAR(B71)&"-"&TEXT(MONTH(B71),"00")," ") -> 2018-02
A72: S.G. Compte courant | B72: 2018-02-13 | C72: Cpte | D72: Virement | F72: Recette | G72: Espèces | H72: 5000 | I72: =IF(F72="Dépense",H72*-1,H72) -> 5000 | J72: 1 | K72: =IF(A72>1,YEAR(B72)&"-"&TEXT(MONTH(B72),"00")," ") -> 2018-02
A73: Tirelire | B73: 2018-02-13 | C73: Cpte | D73: Virement | F73: Dépense | G73: Espèces | H73: 1000 | I73: =IF(F73="Dépense",H73*-1,H73) -> -1000 | J73: 1 | K73: =IF(A73>1,YEAR(B73)&"-"&TEXT(MONTH(B73),"00")," ") -> 2018-02
A74: Tirelire | B74: 2018-02-13 | C74: Cpte | D74: Virement | F74: Dépense | G74: Espèces | H74: 5000 | I74: =IF(F74="Dépense",H74*-1,H74) -> -5000 | J74: 1 | K74: =IF(A74>1,YEAR(B74)&"-"&TEXT(MONTH(B74),"00")," ") -> 2018-02
A75: Hello Bank - LDD | B75: 2018-02-13T16:06:20 | C75: Retrait | D75: Epargne LDD | F75: Dépense | G75: Virement | H75: 7 | I75: =IF(F75="Dépense",H75*-1,H75) -> -7 | J75: 1 | K75: =IF(A75>1,YEAR(B75)&"-"&TEXT(MONTH(B75),"00")," ") -> 2018-02
A76: Hello Bank - LDD | B76: 2018-02-13T16:06:20 | C76: Retrait | D76: Epargne LDD | F76: Dépense | G76: Virement | H76: 750 | I76: =IF(F76="Dépense",H76*-1,H76) -> -750 | J76: 1 | K76: =IF(A76>1,YEAR(B76)&"-"&TEXT(MONTH(B76),"00")," ") -> 2018-02
A77: BNP - Compte Joint | B77: 2018-02-13T16:07:54 | C77: Codevi Alain | D77: Virement | F77: Recette | G77: Virement | H77: 757 | I77: =IF(F77="Dépense",H77*-1,H77) -> 757 | J77: 1 | K77: =IF(A77>1,YEAR(B77)&"-"&TEXT(MONTH(B77),"00")," ") -> 2018-02
A78: S.G. Compte courant | B78: 2018-02-13T16:27:14 | C78: Cuisine Acompte | D78: Aquisition - Equipement | F78: Dépense | G78: Chèque | H78: 2800 | I78: =IF(F78="Dépense",H78*-1,H78) -> -2800 | J78: 1 | K78: =IF(A78>1,YEAR(B78)&"-"&TEXT(MONTH(B78),"00")," ") -> 2018-02
A79: Hello - Compte courant | B79: 2018-02-13T17:14:47 | C79: Essence | D79: Carburant | F79: Dépense | G79: Carte | H79: 60 | I79: =IF(F79="Dépense",H79*-1,H79) -> -60 | J79: 1 | K79: =IF(A79>1,YEAR(B79)&"-"&TEXT(MONTH(B79),"00")," ") -> 2018-02
A80: BNP - Compte Joint | B80: 2018-02-14T16:25:49 | C80: BNP - LDD | D80: Virement | F80: Dépense | G80: Chèque | H80: 758 | I80: =IF(F80="Dépense",H80*-1,H80) -> -758 | J80: 1 | K80: =IF(A80>1,YEAR(B80)&"-"&TEXT(MONTH(B80),"00")," ") -> 2018-02
A81: S.G. Compte courant | B81: 2018-02-14T16:25:49 | C81: De BNP | D81: Virement | F81: Recette | G81: Chèque | H81: 758 | I81: =IF(F81="Dépense",H81*-1,H81) -> 758 | J81: 1 | K81: =IF(A81>1,YEAR(B81)&"-"&TEXT(MONTH(B81),"00")," ") -> 2018-02
A82: S.G. Compte courant | B82: 2018-02-14T16:36:07 | C82: Carburant | D82: Carburant | F82: Dépense | G82: Chèque | H82: 64 | I82: =IF(F82="Dépense",H82*-1,H82) -> -64 | J82: 1 | K82: =IF(A82>1,YEAR(B82)&"-"&TEXT(MONTH(B82),"00")," ") -> 2018-02
A83: Espèces | B83: 2018-02-14T16:48:25 | C83: Hyper U | D83: Alimentation | F83: Dépense | G83: Espèces | H83: 11.45 | I83: =IF(F83="Dépense",H83*-1,H83) -> -11.45 | J83: 1 | K83: =IF(A83>1,YEAR(B83)&"-"&TEXT(MONTH(B83),"00")," ") -> 2018-02
A84: Hello - Compte courant | B84: 2018-02-14T23:52:29 | C84: Vers SG | D84: Virement | F84: Dépense | G84: Virement | H84: 45000 | I84: =IF(F84="Dépense",H84*-1,H84) -> -45000 | J84: 1 | K84: =IF(A84>1,YEAR(B84)&"-"&TEXT(MONTH(B84),"00")," ") -> 2018-02
A85: S.G. Compte courant | B85: 2018-02-14T23:52:29 | C85: De Hello | D85: Virement | F85: Recette | G85: Virement | H85: 45000 | I85: =IF(F85="Dépense",H85*-1,H85) -> 45000 | J85: 1 | K85: =IF(A85>1,YEAR(B85)&"-"&TEXT(MONTH(B85),"00")," ") -> 2018-02
A86: Espèces | B86: 2018-02-16T13:45:45 | C86: Leclerc | D86: Alimentation | F86: Dépense | G86: Espèces | H86: 9.88 | I86: =IF(F86="Dépense",H86*-1,H86) -> -9.88 | J86: 1 | K86: =IF(A86>1,YEAR(B86)&"-"&TEXT(MONTH(B86),"00")," ") -> 2018-02
A87: Espèces | B87: 2018-02-16T13:46:15 | C87: Hyper U | D87: Alimentation | F87: Dépense | G87: Espèces | H87: 40.3 | I87: =IF(F87="Dépense",H87*-1,H87) -> -40.3 | J87: 1 | K87: =IF(A87>1,YEAR(B87)&"-"&TEXT(MONTH(B87),"00")," ") -> 2018-02
A88: Espèces | B88: 2018-02-16T13:46:49 | C88: Lidl | D88: Alimentation | F88: Dépense | G88: Espèces | H88: 3.98 | I88: =IF(F88="Dépense",H88*-1,H88) -> -3.98 | J88: 1 | K88: =IF(A88>1,YEAR(B88)&"-"&TEXT(MONTH(B88),"00")," ") -> 2018-02
A89: Espèces | B89: 2018-02-16T13:46:49 | C89: Lidl | D89: Alimentation | F89: Dépense | G89: Espèces | H89: 3.26 | I89: =IF(F89="Dépense",H89*-1,H89) -> -3.26 | J89: 1 | K89: =IF(A89>1,YEAR(B89)&"-"&TEXT(MONTH(B89),"00")," ") -> 2018-02
A90: Hello - Compte courant | B90: 2018-02-16T13:49:29 | C90: Gifi | D90: Equipement Divers | F90: Dépense | G90: Carte | H90: 21.75 | I90: =IF(F90="Dépense",H90*-1,H90) -> -21.75 | J90: 1 | K90: =IF(A90>1,YEAR(B90)&"-"&TEXT(MONTH(B90),"00")," ") -> 2018-02
A91: Espèces | B91: 2018-02-16T17:56:25 | C91: Sophie | D91: Coiffeur | F91: Dépense | G91: Espèces | H91: 17 | I91: =IF(F91="Dépense",H91*-1,H91) -> -17 | J91: 1 | K91: =IF(A91>1,YEAR(B91)&"-"&TEXT(MONTH(B91),"00")," ") -> 2018-02
A92: Hello - Compte courant | B92: 2018-02-19 | C92: Radar | D92: Frais exceptionels | F92: Dépense | G92: Carte | H92: 45 | I92: =IF(F92="Dépense",H92*-1,H92) -> -45 | J92: 1 | K92: =IF(A92>1,YEAR(B92)&"-"&TEXT(MONTH(B92),"00")," ") -> 2018-02
A93: Espèces | B93: 2018-02-21T16:09:03 | C93: Hyper U | D93: Alimentation | F93: Dépense | G93: Espèces | H93: 35.32 | I93: =IF(F93="Dépense",H93*-1,H93) -> -35.32 | J93: 1 | K93: =IF(A93>1,YEAR(B93)&"-"&TEXT(MONTH(B93),"00")," ") -> 2018-02
A94: Espèces | B94: 2018-02-24T11:13:11 | C94: Hyper U | D94: Alimentation | F94: Dépense | G94: Espèces | H94: 30.63 | I94: =IF(F94="Dépense",H94*-1,H94) -> -30.63 | J94: 1 | K94: =IF(A94>1,YEAR(B94)&"-"&TEXT(MONTH(B94),"00")," ") -> 2018-02
A95: Espèces | B95: 2018-02-24T16:15:12 | C95: Tabac | D95: Tabac | F95: Dépense | G95: Espèces | H95: 10 | I95: =IF(F95="Dépense",H95*-1,H95) -> -10 | J95: 1 | K95: =IF(A95>1,YEAR(B95)&"-"&TEXT(MONTH(B95),"00")," ") -> 2018-02
A96: Hello - Compte courant | B96: 2018-02-25 | C96: Orange | D96: Téléphone - Internet | F96: Dépense | G96: Prélèvemt | H96: 40.99 | I96: =IF(F96="Dépense",H96*-1,H96) -> -40.99 | J96: 1 | K96: =IF(A96>1,YEAR(B96)&"-"&TEXT(MONTH(B96),"00")," ") -> 2018-02
A97: Hello - Compte courant | B97: 2018-02-26 | C97: Orange | D97: Téléphone - Internet | F97: Dépense | G97: Prélèvemt | H97: 10 | I97: =IF(F97="Dépense",H97*-1,H97) -> -10 | J97: 1 | K97: =IF(A97>1,YEAR(B97)&"-"&TEXT(MONTH(B97),"00")," ") -> 2018-02
A98: Hello - Compte courant | B98: 2018-02-28T16:04:30 | C98: Calumette | D98: Tabac | F98: Dépense | G98: Carte | H98: 51.8 | I98: =IF(F98="Dépense",H98*-1,H98) -> -51.8 | J98: 1 | K98: =IF(A98>1,YEAR(B98)&"-"&TEXT(MONTH(B98),"00")," ") -> 2018-02
A99: Espèces | B99: 2018-03-01T16:03:29 | C99: Lidl | D99: Alimentation | F99: Dépense | G99: Espèces | H99: 6.65 | I99: =IF(F99="Dépense",H99*-1,H99) -> -6.65 | J99: 1 | K99: =IF(A99>1,YEAR(B99)&"-"&TEXT(MONTH(B99),"00")," ") -> 2018-03
A100: Hello - Compte courant | B100: 2018-03-02 | C100: Pension | D100: Lucie | F100: Dépense | G100: Prélèvemt | H100: 100 | I100: =IF(F100="Dépense",H100*-1,H100) -> -100 | J100: 1 | K100: =IF(A100>1,YEAR(B100)&"-"&TEXT(MONTH(B100),"00")," ") -> 2018-03
A101: Hello - Compte courant | B101: 2018-03-02 | C101: Retraite | D101: AGIRC | F101: Recette | G101: Virement | H101: 119.85 | I101: =IF(F101="Dépense",H101*-1,H101) -> 119.85 | J101: 1 | K101: =IF(A101>1,YEAR(B101)&"-"&TEXT(MONTH(B101),"00")," ") -> 2018-03
A102: Hello - Compte courant | B102: 2018-03-02 | C102: Retraite | D102: ARRCO | F102: Recette | G102: Virement | H102: 222.11 | I102: =IF(F102="Dépense",H102*-1,H102) -> 222.11 | J102: 1 | K102: =IF(A102>1,YEAR(B102)&"-"&TEXT(MONTH(B102),"00")," ") -> 2018-03
A103: Hello - Compte joint | B103: 2018-03-02 | C103: Loyer | D103: Loyer | F103: Dépense | G103: Prélèvemt | H103: 461.92 | I103: =IF(F103="Dépense",H103*-1,H103) -> -461.92 | J103: 1 | K103: =IF(A103>1,YEAR(B103)&"-"&TEXT(MONTH(B103),"00")," ") -> 2018-03
A104: S.G. Compte courant | B104: 2018-03-02 | C104: Retraite | D104: RSI | F104: Recette | G104: Virement | H104: 363.2 | I104: =IF(F104="Dépense",H104*-1,H104) -> 363.2 | J104: 1 | K104: =IF(A104>1,YEAR(B104)&"-"&TEXT(MONTH(B104),"00")," ") -> 2018-03
A105: S.G. Compte courant | B105: 2018-03-02T16:25:35 | C105: Notaire | D105: Aquisition - Equipement | F105: Dépense | G105: Virement | H105: 66500 | I105: =IF(F105="Dépense",H105*-1,H105) -> -66500 | J105: 1 | K105: =IF(A105>1,YEAR(B105)&"-"&TEXT(MONTH(B105),"00")," ") -> 2018-03
A106: Espèces | B106: 2018-03-03T13:13:35 | C106: Hyper U | D106: Alimentation | F106: Dépense | G106: Espèces | H106: 63.49 | I106: =IF(F106="Dépense",H106*-1,H106) -> -63.49 | J106: 1 | K106: =IF(A106>1,YEAR(B106)&"-"&TEXT(MONTH(B106),"00")," ") -> 2018-03
A107: Espèces | B107: 2018-03-07T11:26:36 | C107: Lidl | D107: Alimentation | F107: Dépense | G107: Carte | H107: 12.87 | I107: =IF(F107="Dépense",H107*-1,H107) -> -12.87 | J107: 1 | K107: =IF(A107>1,YEAR(B107)&"-"&TEXT(MONTH(B107),"00")," ") -> 2018-03
A108: Hello - Compte courant | B108: 2018-03-07T11:27:01 | C108: Leclerc | D108: Carburant | F108: Dépense | G108: Carte | H108: 43.22 | I108: =IF(F108="Dépense",H108*-1,H108) -> -43.22 | J108: 1 | K108: =IF(A108>1,YEAR(B108)&"-"&TEXT(MONTH(B108),"00")," ") -> 2018-03
A109: Espèces | B109: 2018-03-07T11:27:48 | C109: Lavage | D109: Entretien - Réparations véhicule | F109: Dépense | G109: Espèces | H109: 10 | I109: =IF(F109="Dépense",H109*-1,H109) -> -10 | J109: 1 | K109: =IF(A109>1,YEAR(B109)&"-"&TEXT(MONTH(B109),"00")," ") -> 2018-03
A110: Espèces | B110: 2018-03-07T11:32:47 | C110: Medecin | D110: Medecin | F110: Dépense | G110: Espèces | H110: 25 | I110: =IF(F110="Dépense",H110*-1,H110) -> -25 | J110: 1 | K110: =IF(A110>1,YEAR(B110)&"-"&TEXT(MONTH(B110),"00")," ") -> 2018-03
A111: S.G. Compte courant | B111: 2018-03-07T11:37:34 | C111: De livret A | D111: Virement | F111: Recette | G111: Virement | H111: 8000 | I111: =IF(F111="Dépense",H111*-1,H111) -> 8000 | J111: 1 | K111: =IF(A111>1,YEAR(B111)&"-"&TEXT(MONTH(B111),"00")," ") -> 2018-03
A112: S.G. Livret A | B112: 2018-03-07T11:37:34 | C112: Vers Cpte SG | D112: Epargne Livret A | F112: Dépense | G112: Virement | H112: 8000 | I112: =IF(F112="Dépense",H112*-1,H112) -> -8000 | J112: 1 | K112: =IF(A112>1,YEAR(B112)&"-"&TEXT(MONTH(B112),"00")," ") -> 2018-03
A113: S.G. Compte courant | B113: 2018-03-09 | C113: Retraite | D113: CARSAT | F113: Recette | G113: Virement | H113: 701 | I113: =IF(F113="Dépense",H113*-1,H113) -> 701 | J113: 1 | K113: =IF(A113>1,YEAR(B113)&"-"&TEXT(MONTH(B113),"00")," ") -> 2018-03
A114: Hello - Compte courant | B114: 2018-03-09T07:59:12 | C114: CPAM | D114: Medecin | F114: Recette | G114: Virement | H114: 11.53 | I114: =IF(F114="Dépense",H114*-1,H114) -> 11.53 | J114: 1 | K114: =IF(A114>1,YEAR(B114)&"-"&TEXT(MONTH(B114),"00")," ") -> 2018-03
A115: Espèces | B115: 2018-03-09T11:30:48 | C115: MacDo | D115: Alimentation | F115: Dépense | G115: Espèces | H115: 7.8 | I115: =IF(F115="Dépense",H115*-1,H115) -> -7.8 | J115: 1 | K115: =IF(A115>1,YEAR(B115)&"-"&TEXT(MONTH(B115),"00")," ") -> 2018-03
A116: Espèces | B116: 2018-03-10T11:28:49 | C116: Super U | D116: Alimentation | F116: Dépense | G116: Espèces | H116: 47.6 | I116: =IF(F116="Dépense",H116*-1,H116) -> -47.6 | J116: 1 | K116: =IF(A116>1,YEAR(B116)&"-"&TEXT(MONTH(B116),"00")," ") -> 2018-03
A117: Hello - Compte courant | B117: 2018-03-12 | C117: APIVIA | D117: Mutuelle | F117: Dépense | G117: Prélèvemt | H117: 67.05 | I117: =IF(F117="Dépense",H117*-1,H117) -> -67.05 | J117: 1 | K117: =IF(A117>1,YEAR(B117)&"-"&TEXT(MONTH(B117),"00")," ") -> 2018-03
A118: S.G. Compte courant | B118: 2018-03-12 | C118: Joubert | D118: Aquisition - Equipement | F118: Recette | G118: Chèque | H118: 1204.04 | I118: =IF(F118="Dépense",H118*-1,H118) -> 1204.04 | J118: 1 | K118: =IF(A118>1,YEAR(B118)&"-"&TEXT(MONTH(B118),"00")," ") -> 2018-03
A119: Hello - Compte courant | B119: 2018-03-16 | C119: Impot | D119: Impôts et Taxes | F119: Dépense | G119: Prélèvemt | H119: 49 | I119: =IF(F119="Dépense",H119*-1,H119) -> -49 | J119: 1 | K119: =IF(A119>1,YEAR(B119)&"-"&TEXT(MONTH(B119),"00")," ") -> 2018-03
A120: Hello - Compte courant | B120: 2018-03-17T14:22:25 | C120: Leclerc | D120: Carburant | F120: Dépense | G120: Carte | H120: 41.3 | I120: =IF(F120="Dépense",H120*-1,H120) -> -41.3 | J120: 1 | K120: =IF(A120>1,YEAR(B120)&"-"&TEXT(MONTH(B120),"00")," ") -> 2018-03
A121: Espèces | B121: 2018-03-17T14:23:00 | C121: Hyper U | D121: Alimentation | F121: Dépense | G121: Espèces | H121: 54.96 | I121: =IF(F121="Dépense",H121*-1,H121) -> -54.96 | J121: 1 | K121: =IF(A121>1,YEAR(B121)&"-"&TEXT(MONTH(B121),"00")," ") -> 2018-03
A122: Espèces | B122: 2018-03-19T10:36:05 | C122: Leclerc Resto | D122: Alimentation | F122: Dépense | G122: Espèces | H122: 11.9 | I122: =IF(F122="Dépense",H122*-1,H122) -> -11.9 | J122: 1 | K122: =IF(A122>1,YEAR(B122)&"-"&TEXT(MONTH(B122),"00")," ") -> 2018-03
A123: Espèces | B123: 2018-03-19T14:43:53 | C123: Ouverture eaux | D123: Eau | F123: Dépense | G123: Espèces | H123: 35.25 | I123: =IF(F123="Dépense",H123*-1,H123) -> -35.25 | J123: 1 | K123: =IF(A123>1,YEAR(B123)&"-"&TEXT(MONTH(B123),"00")," ") -> 2018-03
A124: Espèces | B124: 2018-03-23T10:38:02 | C124: MacDo | D124: Alimentation | F124: Dépense | G124: Espèces | H124: 7 | I124: =IF(F124="Dépense",H124*-1,H124) -> -7 | J124: 1 | K124: =IF(A124>1,YEAR(B124)&"-"&TEXT(MONTH(B124),"00")," ") -> 2018-03
A125: Espèces | B125: 2018-03-24T10:37:16 | C125: Lidl Pain | D125: Alimentation | F125: Dépense | G125: Espèces | H125: 3.66 | I125: =IF(F125="Dépense",H125*-1,H125) -> -3.66 | J125: 1 | K125: =IF(A125>1,YEAR(B125)&"-"&TEXT(MONTH(B125),"00")," ") -> 2018-03
A126: Espèces | B126: 2018-03-24T10:38:28 | C126: Leclerc | D126: Alimentation | F126: Dépense | G126: Espèces | H126: 62.5 | I126: =IF(F126="Dépense",H126*-1,H126) -> -62.5 | J126: 1 | K126: =IF(A126>1,YEAR(B126)&"-"&TEXT(MONTH(B126),"00")," ") -> 2018-03
A127: Espèces | B127: 2018-03-24T10:39:21 | C127: Leclerc | D127: Carburant | F127: Dépense | G127: Espèces | H127: 67 | I127: =IF(F127="Dépense",H127*-1,H127) -> -67 | J127: 1 | K127: =IF(A127>1,YEAR(B127)&"-"&TEXT(MONTH(B127),"00")," ") -> 2018-03
A128: Hello - Compte courant | B128: 2018-03-25 | C128: Orange | D128: Téléphone - Internet | F128: Dépense | G128: Prélèvemt | H128: 41.95 | I128: =IF(F128="Dépense",H128*-1,H128) -> -41.95 | J128: 1 | K128: =IF(A128>1,YEAR(B128)&"-"&TEXT(MONTH(B128),"00")," ") -> 2018-03
A129: Hello - Compte courant | B129: 2018-03-27T09:26:32 | C129: Calumette | D129: Tabac | F129: Dépense | G129: Espèces | H129: 58.8 | I129: =IF(F129="Dépense",H129*-1,H129) -> -58.8 | J129: 1 | K129: =IF(A129>1,YEAR(B129)&"-"&TEXT(MONTH(B129),"00")," ") -> 2018-03
A130: Espèces | B130: 2018-03-28T09:23:10 | C130: Aspirateur | D130: Equipement Divers | F130: Dépense | G130: Espèces | H130: 72.98 | I130: =IF(F130="Dépense",H130*-1,H130) -> -72.98 | J130: 1 | K130: =IF(A130>1,YEAR(B130)&"-"&TEXT(MONTH(B130),"00")," ") -> 2018-03
A131: Espèces | B131: 2018-03-28T09:24:08 | C131: Tabac | D131: Tabac | F131: Dépense | G131: Espèces | H131: 20 | I131: =IF(F131="Dépense",H131*-1,H131) -> -20 | J131: 1 | K131: =IF(A131>1,YEAR(B131)&"-"&TEXT(MONTH(B131),"00")," ") -> 2018-03
A132: Espèces | B132: 2018-03-30 | C132: Leclerc Resto | D132: Alimentation | F132: Dépense | G132: Espèces | H132: 11.9 | I132: =IF(F132="Dépense",H132*-1,H132) -> -11.9 | J132: 1 | K132: =IF(A132>1,YEAR(B132)&"-"&TEXT(MONTH(B132),"00")," ") -> 2018-03
A133: Espèces | B133: 2018-03-30T12:07:44 | C133: Super U | D133: Alimentation | F133: Dépense | G133: Espèces | H133: 41.6 | I133: =IF(F133="Dépense",H133*-1,H133) -> -41.6 | J133: 1 | K133: =IF(A133>1,YEAR(B133)&"-"&TEXT(MONTH(B133),"00")," ") -> 2018-03
A134: Espèces | B134: 2018-03-30T17:47:14 | C134: Compteur Eau | D134: Aquisition - Equipement | F134: Dépense | G134: Espèces | H134: 35.25 | I134: =IF(F134="Dépense",H134*-1,H134) -> -35.25 | J134: 1 | K134: =IF(A134>1,YEAR(B134)&"-"&TEXT(MONTH(B134),"00")," ") -> 2018-03
A135: Hello - Compte courant | B135: 2018-04-02 | C135: Impot | D135: Impôts et Taxes | F135: Dépense | G135: Prélèvemt | H135: 49 | I135: =IF(F135="Dépense",H135*-1,H135) -> -49 | J135: 1 | K135: =IF(A135>1,YEAR(B135)&"-"&TEXT(MONTH(B135),"00")," ") -> 2018-04
A136: Hello - Compte courant | B136: 2018-04-02 | C136: Orange | D136: Téléphone - Internet | F136: Dépense | G136: Prélèvemt | H136: 42.1 | I136: =IF(F136="Dépense",H136*-1,H136) -> -42.1 | J136: 1 | K136: =IF(A136>1,YEAR(B136)&"-"&TEXT(MONTH(B136),"00")," ") -> 2018-04
A137: Hello - Compte courant | B137: 2018-04-02 | C137: Retraite | D137: AGIRC | F137: Recette | G137: Virement | H137: 119.85 | I137: =IF(F137="Dépense",H137*-1,H137) -> 119.85 | J137: 1 | K137: =IF(A137>1,YEAR(B137)&"-"&TEXT(MONTH(B137),"00")," ") -> 2018-04
A138: Hello - Compte courant | B138: 2018-04-02 | C138: Retraite | D138: RAVGDT | F138: Recette | G138: Virement | H138: 207.63 | I138: =IF(F138="Dépense",H138*-1,H138) -> 207.63 | J138: 1 | K138: =IF(A138>1,YEAR(B138)&"-"&TEXT(MONTH(B138),"00")," ") -> 2018-04
A139: Hello - Compte courant | B139: 2018-04-02 | C139: Retraite | D139: ARRCO | F139: Recette | G139: Virement | H139: 222.11 | I139: =IF(F139="Dépense",H139*-1,H139) -> 222.11 | J139: 1 | K139: =IF(A139>1,YEAR(B139)&"-"&TEXT(MONTH(B139),"00")," ") -> 2018-04
A140: Hello - Compte joint | B140: 2018-04-02 | C140: Loyer | D140: Loyer | F140: Dépense | G140: Prélèvemt | H140: 456.46 | I140: =IF(F140="Dépense",H140*-1,H140) -> -456.46 | J140: 1 | K140: =IF(A140>1,YEAR(B140)&"-"&TEXT(MONTH(B140),"00")," ") -> 2018-04
A141: Hello - Compte courant | B141: 2018-04-04 | C141: Déménagement | D141: Aquisition - Equipement | F141: Dépense | G141: Chèque | H141: 480.04 | I141: =IF(F141="Dépense",H141*-1,H141) -> -480.04 | J141: 1 | K141: =IF(A141>1,YEAR(B141)&"-"&TEXT(MONTH(B141),"00")," ") -> 2018-04
A142: S.G. Compte courant | B142: 2018-04-05T09:30:42 | C142: Virement Sylvie | D142: Virement | F142: Recette | G142: Virement | H142: 7000 | I142: =IF(F142="Dépense",H142*-1,H142) -> 7000 | J142: 1 | K142: =IF(A142>1,YEAR(B142)&"-"&TEXT(MONTH(B142),"00")," ") -> 2018-04
A143: Espèces | B143: 2018-04-06 | C143: Lidl Pain | D143: Alimentation | F143: Dépense | G143: Espèces | H143: 2.98 | I143: =IF(F143="Dépense",H143*-1,H143) -> -2.98 | J143: 1 | K143: =IF(A143>1,YEAR(B143)&"-"&TEXT(MONTH(B143),"00")," ") -> 2018-04
A144: Espèces | B144: 2018-04-06 | C144: Leclerc | D144: Alimentation | F144: Dépense | G144: Espèces | H144: 16.52 | I144: =IF(F144="Dépense",H144*-1,H144) -> -16.52 | J144: 1 | K144: =IF(A144>1,YEAR(B144)&"-"&TEXT(MONTH(B144),"00")," ") -> 2018-04
A145: Espèces | B145: 2018-04-06T18:09:30 | C145: Leclerc Restaurant | D145: Restaurant | F145: Dépense | G145: Espèces | H145: 33.8 | I145: =IF(F145="Dépense",H145*-1,H145) -> -33.8 | J145: 1 | K145: =IF(A145>1,YEAR(B145)&"-"&TEXT(MONTH(B145),"00")," ") -> 2018-04
A146: Espèces | B146: 2018-04-06T18:10:25 | C146: Leclerc Rondelle | D146: Travaux RdC | F146: Dépense | G146: Espèces | H146: 6.05 | I146: =IF(F146="Dépense",H146*-1,H146) -> -6.05 | J146: 1 | K146: =IF(A146>1,YEAR(B146)&"-"&TEXT(MONTH(B146),"00")," ") -> 2018-04
A147: Espèces | B147: 2018-04-06T18:11:47 | C147: Leclerc | D147: Alimentation | F147: Dépense | G147: Espèces | H147: 1.25 | I147: =IF(F147="Dépense",H147*-1,H147) -> -1.25 | J147: 1 | K147: =IF(A147>1,YEAR(B147)&"-"&TEXT(MONTH(B147),"00")," ") -> 2018-04
A148: Espèces | B148: 2018-04-07 | C148: Leclerc | D148: Carburant | F148: Dépense | G148: Espèces | H148: 63 | I148: =IF(F148="Dépense",H148*-1,H148) -> -63 | J148: 1 | K148: =IF(A148>1,YEAR(B148)&"-"&TEXT(MONTH(B148),"00")," ") -> 2018-04
A149: Espèces | B149: 2018-04-07T17:51:40 | C149: Leclerc | D149: Alimentation | F149: Dépense | G149: Espèces | H149: 10.77 | I149: =IF(F149="Dépense",H149*-1,H149) -> -10.77 | J149: 1 | K149: =IF(A149>1,YEAR(B149)&"-"&TEXT(MONTH(B149),"00")," ") -> 2018-04
A150: S.G. Compte courant | B150: 2018-04-09 | C150: Da Cunha | D150: Aquisition - Equipement | F150: Dépense | G150: Chèque | H150: 11000 | I150: =IF(F150="Dépense",H150*-1,H150) -> -11000 | J150: 1 | K150: =IF(A150>1,YEAR(B150)&"-"&TEXT(MONTH(B150),"00")," ") -> 2018-04
A151: S.G. Compte courant | B151: 2018-04-09 | C151: Retraite | D151: RSI | F151: Recette | G151: Virement | H151: 363.2 | I151: =IF(F151="Dépense",H151*-1,H151) -> 363.2 | J151: 1 | K151: =IF(A151>1,YEAR(B151)&"-"&TEXT(MONTH(B151),"00")," ") -> 2018-04
A152: S.G. Compte courant | B152: 2018-04-09 | C152: Retraite | D152: CARSAT | F152: Recette | G152: Virement | H152: 701 | I152: =IF(F152="Dépense",H152*-1,H152) -> 701 | J152: 1 | K152: =IF(A152>1,YEAR(B152)&"-"&TEXT(MONTH(B152),"00")," ") -> 2018-04
A153: Hello - Compte courant | B153: 2018-04-10 | C153: Pension | D153: Lucie | F153: Dépense | G153: Prélèvemt | H153: 100 | I153: =IF(F153="Dépense",H153*-1,H153) -> -100 | J153: 1 | K153: =IF(A153>1,YEAR(B153)&"-"&TEXT(MONTH(B153),"00")," ") -> 2018-04
A154: Hello - Compte courant | B154: 2018-04-10 | C154: APIVIA | D154: Mutuelle | F154: Dépense | G154: Prélèvemt | H154: 67.05 | I154: =IF(F154="Dépense",H154*-1,H154) -> -67.05 | J154: 1 | K154: =IF(A154>1,YEAR(B154)&"-"&TEXT(MONTH(B154),"00")," ") -> 2018-04
A155: Hello - Compte courant | B155: 2018-04-10 | C155: MACIF | D155: Assurance Habitation | F155: Dépense | G155: Prélèvemt | H155: 75.53 | I155: =IF(F155="Dépense",H155*-1,H155) -> -75.53 | J155: 1 | K155: =IF(A155>1,YEAR(B155)&"-"&TEXT(MONTH(B155),"00")," ") -> 2018-04
A156: Hello - Compte courant | B156: 2018-04-11 | C156: Direct Energie | D156: Gaz | F156: Dépense | G156: Prélèvemt | H156: 57 | I156: =IF(F156="Dépense",H156*-1,H156) -> -57 | J156: 1 | K156: =IF(A156>1,YEAR(B156)&"-"&TEXT(MONTH(B156),"00")," ") -> 2018-04
A157: Hello - Compte courant | B157: 2018-04-11 | C157: Direct Energie | D157: Electricité | F157: Dépense | G157: Prélèvemt | H157: 54 | I157: =IF(F157="Dépense",H157*-1,H157) -> -54 | J157: 1 | K157: =IF(A157>1,YEAR(B157)&"-"&TEXT(MONTH(B157),"00")," ") -> 2018-04
A158: Espèces | B158: 2018-04-13 | C158: Leclerc Resto | D158: Alimentation | F158: Dépense | G158: Espèces | H158: 13.9 | I158: =IF(F158="Dépense",H158*-1,H158) -> -13.9 | J158: 1 | K158: =IF(A158>1,YEAR(B158)&"-"&TEXT(MONTH(B158),"00")," ") -> 2018-04
A159: Espèces | B159: 2018-04-13T17:52:26 | C159: Leclerc Balai | D159: Equipement Divers | F159: Dépense | G159: Espèces | H159: 10.25 | I159: =IF(F159="Dépense",H159*-1,H159) -> -10.25 | J159: 1 | K159: =IF(A159>1,YEAR(B159)&"-"&TEXT(MONTH(B159),"00")," ") -> 2018-04
A160: Espèces | B160: 2018-04-14T11:05:27 | C160: Hyper U | D160: Alimentation | F160: Dépense | G160: Espèces | H160: 73.22 | I160: =IF(F160="Dépense",H160*-1,H160) -> -73.22 | J160: 1 | K160: =IF(A160>1,YEAR(B160)&"-"&TEXT(MONTH(B160),"00")," ") -> 2018-04
A161: Hello - Compte courant | B161: 2018-04-18 | C161: Tabac | D161: Tabac | F161: Dépense | G161: Carte | H161: 58.8 | I161: =IF(F161="Dépense",H161*-1,H161) -> -58.8 | J161: 1 | K161: =IF(A161>1,YEAR(B161)&"-"&TEXT(MONTH(B161),"00")," ") -> 2018-04
A162: Espèces | B162: 2018-04-20 | C162: Leclerc Resto | D162: Alimentation | F162: Dépense | G162: Espèces | H162: 13.9 | I162: =IF(F162="Dépense",H162*-1,H162) -> -13.9 | J162: 1 | K162: =IF(A162>1,YEAR(B162)&"-"&TEXT(MONTH(B162),"00")," ") -> 2018-04
A163: Hello - Compte joint | B163: 2018-04-20 | C163: Primagaz | D163: Gaz | F163: Dépense | G163: Chèque | H163: 282.81 | I163: =IF(F163="Dépense",H163*-1,H163) -> -282.81 | J163: 1 | K163: =IF(A163>1,YEAR(B163)&"-"&TEXT(MONTH(B163),"00")," ") -> 2018-04
A164: Hello - Compte courant | B164: 2018-04-20T14:54:28 | C164: Leclerc | D164: Carburant | F164: Dépense | G164: Carte | H164: 48.4 | I164: =IF(F164="Dépense",H164*-1,H164) -> -48.4 | J164: 1 | K164: =IF(A164>1,YEAR(B164)&"-"&TEXT(MONTH(B164),"00")," ") -> 2018-04
A165: Espèces | B165: 2018-04-21T12:05:11 | C165: Hyper U | D165: Alimentation | F165: Dépense | G165: Espèces | H165: 38.14 | I165: =IF(F165="Dépense",H165*-1,H165) -> -38.14 | J165: 1 | K165: =IF(A165>1,YEAR(B165)&"-"&TEXT(MONTH(B165),"00")," ") -> 2018-04
A166: Hello - Compte courant | B166: 2018-04-23 | C166: Kiné Remb Apivia | D166: Kiné | F166: Recette | G166: Espèces | H166: 35 | I166: =IF(F166="Dépense",H166*-1,H166) -> 35 | J166: 1 | K166: =IF(A166>1,YEAR(B166)&"-"&TEXT(MONTH(B166),"00")," ") -> 2018-04
A167: Espèces | B167: 2018-04-23T22:45:19 | C167: Kiné | D167: Kiné | F167: Dépense | G167: Espèces | H167: 50 | I167: =IF(F167="Dépense",H167*-1,H167) -> -50 | J167: 1 | K167: =IF(A167>1,YEAR(B167)&"-"&TEXT(MONTH(B167),"00")," ") -> 2018-04
A168: Espèces | B168: 2018-04-23T22:45:56 | C168: Tabac | D168: Tabac | F168: Dépense | G168: Espèces | H168: 10.5 | I168: =IF(F168="Dépense",H168*-1,H168) -> -10.5 | J168: 1 | K168: =IF(A168>1,YEAR(B168)&"-"&TEXT(MONTH(B168),"00")," ") -> 2018-04
A169: S.G. Livret A | B169: 2018-04-27T12:04:48 | C169: Virement | D169: Epargne Livret A | F169: Dépense | G169: Virement | H169: 10000 | I169: =IF(F169="Dépense",H169*-1,H169) -> -10000 | J169: 1 | K169: =IF(A169>1,YEAR(B169)&"-"&TEXT(MONTH(B169),"00")," ") -> 2018-04
A170: S.G. Compte courant | B170: 2018-04-27T12:05:21 | C170: Virement | D170: Virement | F170: Recette | G170: Virement | H170: 10000 | I170: =IF(F170="Dépense",H170*-1,H170) -> 10000 | J170: 1 | K170: =IF(A170>1,YEAR(B170)&"-"&TEXT(MONTH(B170),"00")," ") -> 2018-04
A171: Espèces | B171: 2018-04-28T18:40:18 | C171: LavePont | D171: Equipement Divers | F171: Dépense | G171: Espèces | H171: 11.05 | I171: =IF(F171="Dépense",H171*-1,H171) -> -11.05 | J171: 1 | K171: =IF(A171>1,YEAR(B171)&"-"&TEXT(MONTH(B171),"00")," ") -> 2018-04
A172: Hello - Compte courant | B172: 2018-04-28T18:42:44 | C172: Leroy Merlin | D172: Equipement Divers | F172: Dépense | G172: Carte | H172: 16.9 | I172: =IF(F172="Dépense",H172*-1,H172) -> -16.9 | J172: 1 | K172: =IF(A172>1,YEAR(B172)&"-"&TEXT(MONTH(B172),"00")," ") -> 2018-04
A173: Hello - Compte courant | B173: 2018-04-30 | C173: Leclerc | D173: Carburant | F173: Dépense | G173: Carte | H173: 66 | I173: =IF(F173="Dépense",H173*-1,H173) -> -66 | J173: 1 | K173: =IF(A173>1,YEAR(B173)&"-"&TEXT(MONTH(B173),"00")," ") -> 2018-04
A174: Hello - Compte courant | B174: 2018-04-30 | C174: Leclerc Flexible Gaz + Sel | D174: Equipement Divers | F174: Dépense | G174: Carte | H174: 48.9 | I174: =IF(F174="Dépense",H174*-1,H174) -> -48.9 | J174: 1 | K174: =IF(A174>1,YEAR(B174)&"-"&TEXT(MONTH(B174),"00")," ") -> 2018-04
A175: Hello - Compte courant | B175: 2018-04-30 | C175: Leclerc | D175: Alimentation | F175: Dépense | G175: Carte | H175: 79.66 | I175: =IF(F175="Dépense",H175*-1,H175) -> -79.66 | J175: 1 | K175: =IF(A175>1,YEAR(B175)&"-"&TEXT(MONTH(B175),"00")," ") -> 2018-04
A176: Hello - Compte joint | B176: 2018-04-30 | C176: BM Déménagement | D176: Aquisition - Equipement | F176: Dépense | G176: Chèque | H176: 720.06 | I176: =IF(F176="Dépense",H176*-1,H176) -> -720.06 | J176: 1 | K176: =IF(A176>1,YEAR(B176)&"-"&TEXT(MONTH(B176),"00")," ") -> 2018-04
A177: BNP - Compte Joint | B177: 2018-05-01 | C177: Ajustement | D177: Virement | F177: Recette | G177: Chèque | H177: 6.09 | I177: =IF(F177="Dépense",H177*-1,H177) -> 6.09 | J177: 1 | K177: =IF(A177>1,YEAR(B177)&"-"&TEXT(MONTH(B177),"00")," ") -> 2018-05
A178: Hello - Compte courant | B178: 2018-05-02 | C178: Amazon Chaise Cuisine | D178: Equipement Divers | F178: Dépense | G178: Carte | H178: 76.99 | I178: =IF(F178="Dépense",H178*-1,H178) -> -76.99 | J178: 1 | K178: =IF(A178>1,YEAR(B178)&"-"&TEXT(MONTH(B178),"00")," ") -> 2018-05
A179: Hello - Compte courant | B179: 2018-05-02 | C179: Retraite | D179: AGIRC | F179: Recette | G179: Virement | H179: 119.85 | I179: =IF(F179="Dépense",H179*-1,H179) -> 119.85 | J179: 1 | K179: =IF(A179>1,YEAR(B179)&"-"&TEXT(MONTH(B179),"00")," ") -> 2018-05
A180: Hello - Compte courant | B180: 2018-05-03 | C180: Leclerc | D180: Alimentation | F180: Dépense | G180: Carte | H180: 30.32 | I180: =IF(F180="Dépense",H180*-1,H180) -> -30.32 | J180: 1 | K180: =IF(A180>1,YEAR(B180)&"-"&TEXT(MONTH(B180),"00")," ") -> 2018-05
A181: Hello - Compte courant | B181: 2018-05-03 | C181: Amazon Chaise Cuisine | D181: Equipement Divers | F181: Dépense | G181: Carte | H181: 55.76 | I181: =IF(F181="Dépense",H181*-1,H181) -> -55.76 | J181: 1 | K181: =IF(A181>1,YEAR(B181)&"-"&TEXT(MONTH(B181),"00")," ") -> 2018-05
A182: Hello - Compte courant | B182: 2018-05-03 | C182: Amazon Chaise Cuisine | D182: Equipement Divers | F182: Recette | G182: Carte | H182: 55.76 | I182: =IF(F182="Dépense",H182*-1,H182) -> 55.76 | J182: 1 | K182: =IF(A182>1,YEAR(B182)&"-"&TEXT(MONTH(B182),"00")," ") -> 2018-05
A183: Hello - Compte courant | B183: 2018-05-03 | C183: Retraite | D183: ARRCO | F183: Recette | G183: Virement | H183: 222.11 | I183: =IF(F183="Dépense",H183*-1,H183) -> 222.11 | J183: 1 | K183: =IF(A183>1,YEAR(B183)&"-"&TEXT(MONTH(B183),"00")," ") -> 2018-05
A184: S.G. Compte courant | B184: 2018-05-03 | C184: DA Cunha | D184: Aquisition - Equipement | F184: Dépense | G184: Chèque | H184: 10000 | I184: =IF(F184="Dépense",H184*-1,H184) -> -10000 | J184: 1 | K184: =IF(A184>1,YEAR(B184)&"-"&TEXT(MONTH(B184),"00")," ") -> 2018-05
A185: Hello - Compte courant | B185: 2018-05-03T23:20:59 | C185: Brico Leclerc | D185: Entretien Maison | F185: Dépense | G185: Carte | H185: 14.85 | I185: =IF(F185="Dépense",H185*-1,H185) -> -14.85 | J185: 1 | K185: =IF(A185>1,YEAR(B185)&"-"&TEXT(MONTH(B185),"00")," ") -> 2018-05
A186: Espèces | B186: 2018-05-04T23:22:45 | C186: Brico Leclerc | D186: Entretien Maison | F186: Dépense | G186: Espèces | H186: 12.9 | I186: =IF(F186="Dépense",H186*-1,H186) -> -12.9 | J186: 1 | K186: =IF(A186>1,YEAR(B186)&"-"&TEXT(MONTH(B186),"00")," ") -> 2018-05
A187: Espèces | B187: 2018-05-04T23:22:45 | C187: Leclerc Brico | D187: Entretien Maison | F187: Dépense | G187: Espèces | H187: 12.9 | I187: =IF(F187="Dépense",H187*-1,H187) -> -12.9 | J187: 1 | K187: =IF(A187>1,YEAR(B187)&"-"&TEXT(MONTH(B187),"00")," ") -> 2018-05
A188: S.G. Compte courant | B188: 2018-05-05 | C188: Retraite | D188: RSI | F188: Recette | G188: Virement | H188: 363.2 | I188: =IF(F188="Dépense",H188*-1,H188) -> 363.2 | J188: 1 | K188: =IF(A188>1,YEAR(B188)&"-"&TEXT(MONTH(B188),"00")," ") -> 2018-05
A189: Espèces | B189: 2018-05-05T18:23:03 | C189: Brico Leclerc | D189: Travaux RdC | F189: Dépense | G189: Espèces | H189: 4.14 | I189: =IF(F189="Dépense",H189*-1,H189) -> -4.14 | J189: 1 | K189: =IF(A189>1,YEAR(B189)&"-"&TEXT(MONTH(B189),"00")," ") -> 2018-05
A190: Espèces | B190: 2018-05-05T18:23:38 | C190: Brico Leclerc | D190: Travaux RdC | F190: Dépense | G190: Espèces | H190: 2.45 | I190: =IF(F190="Dépense",H190*-1,H190) -> -2.45 | J190: 1 | K190: =IF(A190>1,YEAR(B190)&"-"&TEXT(MONTH(B190),"00")," ") -> 2018-05
A191: Hello - Compte courant | B191: 2018-05-07 | C191: Brico Leclerc | D191: Travaux RdC | F191: Dépense | G191: Carte | H191: 91.3 | I191: =IF(F191="Dépense",H191*-1,H191) -> -91.3 | J191: 1 | K191: =IF(A191>1,YEAR(B191)&"-"&TEXT(MONTH(B191),"00")," ") -> 2018-05
A192: Hello - Compte joint | B192: 2018-05-07 | C192: Loyer | D192: Loyer | F192: Dépense | G192: Prélèvemt | H192: 461.88 | I192: =IF(F192="Dépense",H192*-1,H192) -> -461.88 | J192: 1 | K192: =IF(A192>1,YEAR(B192)&"-"&TEXT(MONTH(B192),"00")," ") -> 2018-05
A193: Hello - Compte courant | B193: 2018-05-07T18:19:08 | C193: Brico Leclerc | D193: Travaux RdC | F193: Dépense | G193: Carte | H193: 46.4 | I193: =IF(F193="Dépense",H193*-1,H193) -> -46.4 | J193: 1 | K193: =IF(A193>1,YEAR(B193)&"-"&TEXT(MONTH(B193),"00")," ") -> 2018-05
A194: Hello - Compte courant | B194: 2018-05-07T18:19:47 | C194: Leclerc | D194: Alimentation | F194: Dépense | G194: Carte | H194: 21.53 | I194: =IF(F194="Dépense",H194*-1,H194) -> -21.53 | J194: 1 | K194: =IF(A194>1,YEAR(B194)&"-"&TEXT(MONTH(B194),"00")," ") -> 2018-05
A195: Espèces | B195: 2018-05-07T18:20:23 | C195: Brico Leclerc | D195: Travaux RdC | F195: Dépense | G195: Espèces | H195: 1.79 | I195: =IF(F195="Dépense",H195*-1,H195) -> -1.79 | J195: 1 | K195: =IF(A195>1,YEAR(B195)&"-"&TEXT(MONTH(B195),"00")," ") -> 2018-05
A196: Hello - Compte courant | B196: 2018-05-08 | C196: Pension | D196: Lucie | F196: Dépense | G196: Prélèvemt | H196: 100 | I196: =IF(F196="Dépense",H196*-1,H196) -> -100 | J196: 1 | K196: =IF(A196>1,YEAR(B196)&"-"&TEXT(MONTH(B196),"00")," ") -> 2018-05
A197: S.G. Compte courant | B197: 2018-05-09 | C197: Retraite | D197: CARSAT | F197: Recette | G197: Virement | H197: 701 | I197: =IF(F197="Dépense",H197*-1,H197) -> 701 | J197: 1 | K197: =IF(A197>1,YEAR(B197)&"-"&TEXT(MONTH(B197),"00")," ") -> 2018-05
A198: Hello - Compte courant | B198: 2018-05-09T18:51:06 | C198: Brico Leclerc | D198: Travaux RdC | F198: Dépense | G198: Carte | H198: 22.6 | I198: =IF(F198="Dépense",H198*-1,H198) -> -22.6 | J198: 1 | K198: =IF(A198>1,YEAR(B198)&"-"&TEXT(MONTH(B198),"00")," ") -> 2018-05
A199: Hello - Compte courant | B199: 2018-05-11 | C199: MACIF | D199: Assurance Habitation | F199: Dépense | G199: Prélèvemt | H199: 75.58 | I199: =IF(F199="Dépense",H199*-1,H199) -> -75.58 | J199: 1 | K199: =IF(A199>1,YEAR(B199)&"-"&TEXT(MONTH(B199),"00")," ") -> 2018-05
A200: Hello - Compte courant | B200: 2018-05-11 | C200: Direct Energie | D200: Gaz | F200: Dépense | G200: Prélèvemt | H200: 18.26 | I200: =IF(F200="Dépense",H200*-1,H200) -> -18.26 | J200: 1 | K200: =IF(A200>1,YEAR(B200)&"-"&TEXT(MONTH(B200),"00")," ") -> 2018-05
A201: Hello - Compte courant | B201: 2018-05-11 | C201: Leclerc | D201: Alimentation | F201: Dépense | G201: Carte | H201: 57.71 | I201: =IF(F201="Dépense",H201*-1,H201) -> -57.71 | J201: 1 | K201: =IF(A201>1,YEAR(B201)&"-"&TEXT(MONTH(B201),"00")," ") -> 2018-05
A202: Hello - Compte courant | B202: 2018-05-11 | C202: Brico dépôt | D202: Travaux RdC | F202: Dépense | G202: Carte | H202: 19.4 | I202: =IF(F202="Dépense",H202*-1,H202) -> -19.4 | J202: 1 | K202: =IF(A202>1,YEAR(B202)&"-"&TEXT(MONTH(B202),"00")," ") -> 2018-05
... 2393 more rows

Sheet Feuil1

Sheet Ventilation
